Cogmind - Beta 10 @@@ ROGUE MODE // 2020.09.18 @ 15:16:07 Player: 277 Result: Destroyed by Y-54 Guardian with Gatling Laser Performance ------------- Evolutions (4) 2000 Regions Visited (9) 1800 Robots Destroyed (87) 435 Value Destroyed (3611) 3611 Prototype IDs (4) 80 Alien Tech Used (0) 0 Bonus (1241) 1241 TOTAL SCORE: 9167 Bonus ------- High Alert Combat Kills 280 Follower Combat Kills 293 Entered Garrisons 200 Used RIF Installer 500 Friendly Fire -32 Cogmind --------- Core Integrity 0/850 Matter 221/300 Energy 100/100 System Corruption 0% Temperature Cool (18) Movement Walking (160) Ox1 Location -6/Factory Parts ------- > --- POWER (2) -------- (None) > --- PROPULSION (2) --- Improved Titanium Leg > --- UTILITY (8) ------ High-capacity Storage Unit Improved Target Analyzer > --- WEAPON (3) ------- Heavy Particle Cannon > --- INVENTORY (12) --- Relay Coupler [Grunt] (25) Relay Coupler [Brawler] (33) Relay Coupler [Sentry] (25) Relay Coupler [Sentry] (21) Gauss Rifle Improved Datajack Chainsword Peak State ------------ > --- POWER ------------ Improved Deuterium Engine Improved Deuterium Engine > --- PROPULSION ------- Improved Titanium Leg Improved Titanium Leg > --- UTILITY ---------- Improved Cooling System High-capacity Storage Unit Triangulator Advanced Sensor Array Advanced Signal Interpreter Improved Shield Generator Relay Coupler [NC] Relay Coupler [Grunt] > --- WEAPON ----------- Improved EM Pulse Cannon Flak Gun Improved Datajack > --- INVENTORY -------- Improved Titanium Leg Improved Titanium Leg Relay Coupler [Grunt] Relay Coupler [Brawler] Relay Coupler [Sentry] Relay Coupler [Sentry] Gauss Rifle Proton Missile Launcher Improved Grenade Launcher Improved Grenade Launcher Chainsword [Rating: 55] Favorites ----------- Power Nuclear Core Engine Improved Deuterium Engine Power Core Nuclear Core Propulsion Aluminum Leg Leg Aluminum Leg Hover Unit Backup Propulsion I Utility High-capacity Storage Unit Device Improved Cooling System Storage High-capacity Storage Unit Processor Terrain Scan Processor Hackware Relay Coupler [Grunt] Protection Light Armor Plating Weapon Heavy EM Pulse Gun Energy Gun Heavy EM Pulse Gun Energy Cannon Improved EM Pulse Cannon Ballistic Gun Gauss Rifle Ballistic Cannon Flak Cannon Launcher Grenade Launcher Slashing Weapon Chainsword Special Melee Weapon Improved Datajack Build | -11 -10 -10 -10 -9 -8 -7 -7 -7 -6 ------- Run | Scr Mat Min Exi Min Mat Fac Gar Fac Fac Slots Evolved 8 | . . . . . 4 2 . . 2 Power 1 | . . . . . . . . . 1 Propulsion . | . . . . . . . . . . Utility 6 | . . . . . 4 2 . . . Weapon 1 | . . . . . . . . . 1 Parts Attached 86 | 5 7 2 1 1 12 3 20 13 22 Power 12 | . 1 1 . . . . 3 1 6 Engine 8 | . 1 . . . . . 1 1 5 Core 4 | . . 1 . . . . 2 . 1 Reactor . | . . . . . . . . . . Propulsion 19 | 2 1 1 . 1 2 1 6 3 2 Treads . | . . . . . . . . . . Leg 19 | 2 1 1 . 1 2 1 6 3 2 Wheel . | . . . . . . . . . . Hover . | . . . . . . . . . . Flight . | . . . . . . . . . . Utility 22 | 2 2 . 1 . 5 2 5 2 3 Device 10 | 1 1 . . . 2 1 2 1 2 Storage 1 | . . . 1 . . . . . . Processor 6 | 1 1 . . . 2 . . 1 1 Hackware 2 | . . . . . . . 2 . . Protection 3 | . . . . . 1 1 1 . . Artifact . | . . . . . . . . . . Weapon 33 | 1 3 . . . 5 . 6 7 11 Energy Gun 4 | 1 2 . . . 1 . . . . Energy Cannon 5 | . . . . . . . . . 5 Ballistic Gun 7 | . . . . . . . 3 3 1 Ballistic Cannon 2 | . . . . . 1 . 1 . . Launcher 12 | . 1 . . . 3 . 2 2 4 Special Weapon . | . . . . . . . . . . Impact Weapon . | . . . . . . . . . . Slashing Weapon 2 | . . . . . . . . 2 . Piercing Weapon . | . . . . . . . . . . Special Melee Weapon 1 | . . . . . . . . . 1 Unidentified Prototypes 2 | . . . . . . . 1 . 1 Parts Lost 41 | . . . . . 1 . 13 . 27 Power 8 | . . . . . . . 2 . 6 Propulsion 6 | . . . . . . . 2 . 4 Utility 13 | . . . . . . . 5 . 8 Weapon 14 | . . . . . 1 . 4 . 9 Highest Loss Streak 12 | . . . . . 1 . 7 . 12 Average Slot Usage (%) 92 | . 98 100 100 100 99 100 82 99 80 Engine 4 | . 14 3 . . . . 2 7 10 Core 6 | . . 10 14 14 9 7 4 . . Leg 20 | . 27 28 28 28 18 15 14 15 10 Device 11 | . 13 14 2 . 18 23 18 22 16 Storage 7 | . . . 11 14 9 7 7 7 6 Processor 11 | . 14 14 14 14 18 15 10 7 5 Hackware 3 | . . . . . . . 1 15 12 Protection 2 | . . . . . 9 15 7 7 . Energy Gun 7 | . 14 14 14 14 10 7 1 . . Ballistic Gun 2 | . . . . . . . 4 6 4 Ballistic Cannon 1 | . . . . . . . 4 2 . Launcher 8 | . 13 14 14 14 6 7 2 4 2 Naked Turns . | . . . . . . . . . . Heaviest Build 77 | 3 12 14 45 45 54 59 60 62 77 Greatest Support 40 | 3 20 20 20 20 27 37 37 40 40 Greatest Overweight (x) 21 | . . . 2 14 2 2 4 1 21 Average Overweight (x) 1 | . . . 1 2 1 1 1 1 1 Largest Inventory Capacity 12 | 4 4 4 12 12 12 12 12 12 12 Average Capacity 10 | 4 4 4 10 12 12 12 12 12 12 Most Carried 12 | 4 4 4 5 12 12 10 12 12 12 Average Carried 8 | 2 3 3 4 10 9 9 9 11 9 Final Capacity 12 | 4 4 4 12 12 12 12 12 12 12 Final Carried 12 | 4 4 4 5 11 11 10 12 12 7 Class Distribution -------------------- 67% | Mutant 12% | Scavenger-Mutant 10% | Bothacker-Mutant 4% | Skirmisher Dominant Class ---------------- Mutant | -10/Materials Mutant | -10/Mines Mutant | -10/Exiles Mutant | -9/Mines Mutant | -8/Materials Scavenger-Skirmisher | -7/Factory Scavenger-Mutant | -7/Garrison Mutant | -7/Factory Bothacker-Mutant | -6/Factory Resources | -11 -10 -10 -10 -9 -8 -7 -7 -7 -6 ----------- Run | Scr Mat Min Exi Min Mat Fac Gar Fac Fac Matter Collected 1900 | 250 126 41 113 20 170 . 584 186 410 Remotely . | . . . . . . . . . . Salvage Created 2989 | 194 306 132 . . 272 . 910 277 898 Parts 149 | 9 20 5 . . 12 . 42 14 47 Haulers Intercepted 1 | . . . . . . . . . 1 Recyclers Shooed . | . . . . . . . . . . Parts Field Recycled . | . . . . . . . . . . Retrieved Matter . | . . . . . . . . . . Parts Self-Destructed . | . . . . . . . . . . Prevented . | . . . . . . . . . . Kills | -11 -10 -10 -10 -9 -8 -7 -7 -7 -6 ------- Run | Scr Mat Min Exi Min Mat Fac Gar Fac Fac Combat Hostiles Destroyed 61 | . 11 4 . . 4 . 20 5 17 Guns 11 | . 1 . . . . . 6 3 1 Cannons 8 | . . . . . 1 . 5 . 2 AOE 42 | . 10 4 . . 3 . 9 2 14 Classes Destroyed 13 | 3 4 . . . 1 . 2 2 1 Worker 8 | 2 2 . . . 1 . . 1 2 Builder 3 | . 1 . . . . . . . 2 Tunneler 7 | 5 1 . . . . . . . 1 Hauler 1 | . . . . . . . . . 1 Recycler 4 | 1 . . . . 1 . . . 2 Mechanic 1 | . . . . . . . . 1 . Watcher 2 | . 2 . . . . . . . . Swarmer 12 | . 3 . . . . . 3 . 6 Grunt 35 | . 8 4 . . 2 . 12 2 7 Duelist 1 | . . . . . . . 1 . . Sentry 6 | . . . . . 2 . . 2 2 Hunter 5 | . . . . . . . 4 . 1 Programmer 2 | . . . . . . . . 1 1 Best Kill Streak 8 | 8 4 4 . . 3 . 5 2 8 Combat Bots Only 5 | . 3 4 . . 3 . 5 2 5 Max Kills in Single Turn 4 | 1 2 4 . . 2 . 2 1 4 Gunslinging . | . . . . . . . . . . Exploded 4 | . 2 4 . . 2 . 2 1 3 Melee . | . . . . . . . . . . Uniques/NPCs Destroyed . | . . . . . . . . . . Combat | -11 -10 -10 -10 -9 -8 -7 -7 -7 -6 -------- Run | Scr Mat Min Exi Min Mat Fac Gar Fac Fac Damage Taken 5618 | . 201 . . 16 323 . 1808 199 3071 Core 1234 | . 12 . . . 13 . 321 35 853 Absorbed by Shields 361 | . . . . . . . 40 76 245 Core Remaining (%) 85 | 100 . . . 95 97 . . 49 . Volleys Fired 217 | 25 31 2 . 1 20 . 79 16 43 Largest 3 | 1 2 1 . 1 2 . 2 2 3 Hottest 180 | 50 80 45 . 30 90 . 84 72 180 Shots Fired 294 | 25 32 2 . 1 30 . 106 23 75 Gun 154 | 25 14 2 . . 21 . 51 16 25 Cannon 70 | . . . . . 4 . 32 2 32 Launcher 70 | . 18 . . 1 5 . 23 5 18 Special . | . . . . . . . . . . Kinetic 111 | . . . . . 4 . 67 18 22 Thermal 48 | 25 2 . . . . . . . 21 Explosive 40 | . 18 . . 1 3 . . 5 13 Electromagnetic 95 | . 12 2 . . 23 . 39 . 19 Robot Hit Streak 17 | 9 9 . . . 13 . 9 11 17 Robot Miss Streak 7 | 2 4 . . . 2 . 7 1 4 Penetration Max 1 | . . . . . . . . . 1 Secondary Targets . | . . . . . . . . . . Shots Hit Robots 197 | 19 16 . . . 25 . 61 13 63 Core Hits 197 | 9 22 4 . . 16 . 64 18 64 Critical Hits 3 | . . . . . . . 2 . 1 Critical Kills 1 | . . . . . . . 1 . . Critical Parts Destroyed 2 | . . . . . . . 1 . 1 Melee Attacks 9 | . . . . . . . . 2 7 Impact . | . . . . . . . . . . Slashing 3 | . . . . . . . . 2 1 Piercing . | . . . . . . . . . . Sneak Attacks 7 | . . . . . . . . 1 6 Combat Hostiles . | . . . . . . . . . . Follow-up Attacks . | . . . . . . . . . . Damage Inflicted 8193 | 271 1015 297 . . 602 . 1854 573 3581 Guns 1688 | 271 154 . . . 239 . 454 257 313 Cannons 1235 | . . . . . 83 . 417 32 703 Explosions 5025 | . 861 297 . . 280 . 983 159 2445 Melee 245 | . . . . . . . . 125 120 Ramming . | . . . . . . . . . . Kinetic 1450 | . . . . . 83 . 795 289 283 Thermal 1541 | 271 26 297 . . . . 60 46 841 Explosive 3046 | . 861 . . . 163 . . 113 1909 Electromagnetic 1911 | . 128 . . . 356 . 999 . 428 Impact . | . . . . . . . . . . Slashing 245 | . . . . . . . . 125 120 Piercing . | . . . . . . . . . . Highest Corruption 1 | . . . . . . . . 1 . Average Corruption 1 | . . . . . . . . 1 . Corruption Purged . | . . . . . . . . . . Effects 1 | . . . . . . . . 1 . Data Loss (minor) 1 | . . . . . . . . 1 . Overload Shots . | . . . . . . . . . . Overflow Damage 272 | . 7 . . . . . 39 . 226 Projectiles 15 | . . . . . . . . . 15 Explosions 167 | . 7 . . . . . 39 . 121 Melee 90 | . . . . . . . . . 90 Knockbacks 18 | . . . . . . . 18 . . Impact . | . . . . . . . . . . Kinetic 18 | . . . . . . . 18 . . Secondary . | . . . . . . . . . . Self-Inflicted Damage 210 | . 8 . . . . . 39 24 139 Shots 8 | . 1 . . . . . 3 1 3 Rammed . | . . . . . . . . . . Targets Rammed . | . . . . . . . . . . Kicked . | . . . . . . . . . . Crushed . | . . . . . . . . . . Highest Temperature 468 | 25 40 8 . . 171 . 20 . 468 Average Temperature 66 | 25 8 6 . . 54 . 7 . 152 Received Heat Transfer 1123 | . 72 . . . 135 . 495 26 395 Effects 5 | . . . . . . . . . 5 Energy Bleed 3 | . . . . . . . . . 3 Damage (major) 2 | . . . . . . . . . 2 Siege Activations . | . . . . . . . . . . Robots Corrupted 1 | . . . . . . . . . 1 Combat Hostiles . | . . . . . . . . . . Parts Fried 13 | . 2 . . . 1 . 5 . 5 Impact Corruptions . | . . . . . . . . . . Robots Melted . | . . . . . . . . . . Combat Hostiles . | . . . . . . . . . . Parts Melted 6 | 3 . 1 . . . . . . 2 Heat Transferred 2318 | 814 74 350 . . . . 100 50 930 Parts Sabotaged . | . . . . . . . . . . Parts Stolen . | . . . . . . . . . . Parts Stripped . | . . . . . . . . . . Power Chain Reactions 7 | . . . . . . . 2 . 5 Missiles Intercepted . | . . . . . . . . . . Alert | -11 -10 -10 -10 -9 -8 -7 -7 -7 -6 ------- Run | Scr Mat Min Exi Min Mat Fac Gar Fac Fac Peak Influence 705 | 40 245 328 . 132 149 83 680 705 566 Initial 357 | . 26 93 . . . 67 58 357 247 Average 248 | 12 144 198 . 6 70 75 434 577 394 Maximum Alert Level 3 | . 1 1 . . . . 2 3 2 Low Security (%) 52 | 100 84 55 . 100 100 100 22 . . Level 1 14 | . 15 44 . . . . 15 4 35 Level 2 31 | . . . . . . . 62 79 64 Level 3 1 | . . . . . . . . 15 . Level 4 . | . . . . . . . . . . Level 5 . | . . . . . . . . . . High Security . | . . . . . . . . . . Max Security . | . . . . . . . . . . Squads Dispatched 19 | . 3 . . . 3 . . 3 10 Investigation 1 | . . . . . 1 . . . . Extermination 2 | . . . . . . . . 1 1 Reinforcement 8 | . 3 . . . 2 . . 1 2 Assault 1 | . . . . . . . . 1 . Garrison 7 | . . . . . . . . . 7 Intercept . | . . . . . . . . . . Construction Impeded 1 | . . . . . . . . . 1 Haulers Reinforced . | . . . . . . . . . . Stealth | -11 -10 -10 -10 -9 -8 -7 -7 -7 -6 --------- Run | Scr Mat Min Exi Min Mat Fac Gar Fac Fac Distress Signals 4 | . 1 . . . . . . . 3 Communications Jammed . | . . . . . . . . . . Distress Signals . | . . . . . . . . . . Times Spotted 113 | . 18 4 . 7 15 . 34 6 29 Peak Tracking Total 8 | . 3 4 . 3 5 . 6 2 8 Tactical Retreats 14 | . 1 . . . . . 8 . 5 Traps | -11 -10 -10 -10 -9 -8 -7 -7 -7 -6 ------- Run | Scr Mat Min Exi Min Mat Fac Gar Fac Fac Traps Triggered 12 | . . . . . 1 . 10 . 1 Indirectly 5 | . . . . . . . 5 . . Trap Hack Attempts . | . . . . . . . . . . Triggered . | . . . . . . . . . . Disarmed . | . . . . . . . . . . Reprogrammed . | . . . . . . . . . . Reused . | . . . . . . . . . . Traps Extracted . | . . . . . . . . . . Installed . | . . . . . . . . . . Triggered 1 | . . . . . . . 1 . . Machines | -11 -10 -10 -10 -9 -8 -7 -7 -7 -6 ---------- Run | Scr Mat Min Exi Min Mat Fac Gar Fac Fac Machines Disabled 29 | . 1 9 . 1 2 . 3 7 6 Max in Single Turn 8 | . 1 8 . 1 . . 1 5 4 Garrison Relay 3 | . . . . . . . 3 . . Machines Sabotaged . | . . . . . . . . . . Garrisons Compromised . | . . . . . . . . . . Overloaded Fab Kills . | . . . . . . . . . . Fab Network Shutdowns . | . . . . . . . . . . Hacking | -11 -10 -10 -10 -9 -8 -7 -7 -7 -6 --------- Run | Scr Mat Min Exi Min Mat Fac Gar Fac Fac Machines Accessed 14 | . 4 1 1 1 2 2 . 2 1 Terminals 7 | . 3 . . 1 2 . . 1 . Fabricators . | . . . . . . . . . . Repair Stations 3 | . 1 . . . . . . 1 1 Recycling Units 1 | . . . . . . 1 . . . Scanalyzers . | . . . . . . . . . . Garrison Access 1 | . . . . . . 1 . . . Total Hacks 47 | . 18 1 3 5 8 2 . 7 3 Successful 37 | . 15 1 3 3 4 2 . 6 3 Failed 10 | . 3 . . 2 4 . . 1 . Catastrophic . | . . . . . . . . . . Database Lockouts . | . . . . . . . . . . Manual 28 | . 11 . . 5 8 1 . 3 . Terminals 30 | . 13 . . 5 8 . . 4 . Fabricators . | . . . . . . . . . . Repair Stations 11 | . 5 . . . . . . 3 3 Recycling Units 1 | . . . . . . 1 . . . Scanalyzers . | . . . . . . . . . . Garrison Access 1 | . . . . . . 1 . . . Terminal Hacks 10 | . 3 1 3 1 1 . . 1 . Record 4 | . . . 3 . . . . 1 . Prototype ID Bank 1 | . 1 . . . . . . . . Open Door 1 | . . 1 . . . . . . . Terminal Index 2 | . 1 . . 1 . . . . . Unreport Threat 1 | . . . . . 1 . . . . Zone Layout 1 | . 1 . . . . . . . . Fabricator Hacks . | . . . . . . . . . . Repair Station Hacks 9 | . 4 . . . . . . 2 3 Scan Component 4 | . 2 . . . . . . 1 1 Repair 4 | . 2 . . . . . . 1 1 Refit 1 | . . . . . . . . . 1 Recycling Unit Hacks . | . . . . . . . . . . Scanalyzer . | . . . . . . . . . . Garrison Access Hacks 1 | . . . . . . 1 . . . Unlock Access 1 | . . . . . . 1 . . . Unauthorized Hacks 17 | . 8 . . 2 3 1 . 3 . Terminals 16 | . 8 . . 2 3 . . 3 . Track 7 | . 3 . . 1 2 . . 1 . Botnet 6 | . 3 . . 1 1 . . 1 . Operators 3 | . 2 . . . . . . 1 . Fabricators . | . . . . . . . . . . Repair Stations . | . . . . . . . . . . Recycling Units 1 | . . . . . . 1 . . . Mask 1 | . . . . . . 1 . . . Scanalyzers . | . . . . . . . . . . Garrison Access . | . . . . . . . . . . Data Cores Recovered 1 | . . . . . 1 . . . . Used 1 | . . . . . 1 . . . . Hacking Detections 11 | . 4 . . 1 2 1 . 2 1 Full Trace Events . | . . . . . . . . . . Feedback Events . | . . . . . . . . . . Feedback Blocked . | . . . . . . . . . . Robot Schematics Acquired . | . . . . . . . . . . Robots Built . | . . . . . . . . . . Matter . | . . . . . . . . . . Time . | . . . . . . . . . . Total Robot Build Rating . | . . . . . . . . . . Part Schematics Acquired . | . . . . . . . . . . Parts Built . | . . . . . . . . . . Matter . | . . . . . . . . . . Time . | . . . . . . . . . . Total Part Build Rating . | . . . . . . . . . . Parts Repaired 4 | . 2 . . . . . . 1 1 Time 182 | . 58 . . . . . . 44 80 Parts Recycled . | . . . . . . . . . . Recycled Matter . | . . . . . . . . . . Retrieved Matter . | . . . . . . . . . . Retrieved Components . | . . . . . . . . . . Parts Scanalyzed . | . . . . . . . . . . Part Schematics Acquired . | . . . . . . . . . . Parts Damaged . | . . . . . . . . . . Bothacking | -11 -10 -10 -10 -9 -8 -7 -7 -7 -6 ------------ Run | Scr Mat Min Exi Min Mat Fac Gar Fac Fac Used RIF Installer 1 | . . . . . . . 1 . . Robots Hacked 4 | . . . . . . . . . 4 Non-combat 4 | . . . . . . . . . 4 Combat . | . . . . . . . . . . Robot Hacks Applied 6 | . . . . . . . . . 6 parse_system 1 | . . . . . . . . . 1 no_distress 1 | . . . . . . . . . 1 generate_echo 1 | . . . . . . . . . 1 find_fabricator 1 | . . . . . . . . . 1 find_recycling 1 | . . . . . . . . . 1 relay_feed 1 | . . . . . . . . . 1 Relay Couplers Released 10 | . . . . . . . 10 . . Machine Destruction 10 | . . . . . . . 10 . . Attached 2 | . . . . . . . 2 . . Robots Rewired . | . . . . . . . . . . Allies Hacked . | . . . . . . . . . . Hacks Repelled . | . . . . . . . . . . Allies | -11 -10 -10 -10 -9 -8 -7 -7 -7 -6 -------- Run | Scr Mat Min Exi Min Mat Fac Gar Fac Fac Total Allies 5 | . . 3 . 2 . . . . . Largest Group 5 | . . 3 3 5 5 1 1 . . Highest-Rated Group 95 | . . 40 40 95 95 31 31 . . Highest-Rated Ally 31 | . . 16 16 31 31 31 31 . . Total Orders 1 | . . . . 1 . . . . . GUARD 1 | . . . . 1 . . . . . Ally Attacks 65 | . . . . 25 34 . 6 . . Total Damage 702 | . . . . 229 390 . 83 . . Kills 14 | . . . . 5 7 . 2 . . Allies Corrupted . | . . . . . . . . . . Allies Melted . | . . . . . . . . . . Intel | -11 -10 -10 -10 -9 -8 -7 -7 -7 -6 ------- Run | Scr Mat Min Exi Min Mat Fac Gar Fac Fac Robot Analysis Total . | . . . . . . . . . . Derelict Logs Recovered 5 | . . 3 . 2 . . . . . Drone Launches . | . . . . . . . . . . Drone Recoveries . | . . . . . . . . . . Exploration | -11 -10 -10 -10 -9 -8 -7 -7 -7 -6 ------------- Run | Scr Mat Min Exi Min Mat Fac Gar Fac Fac Turns Passed 6272 | 113 613 329 693 1332 372 133 1218 439 1030 Spaces Moved 3254 | 98 405 266 415 616 180 73 554 189 458 Core 141 | 98 7 . . 35 . . . . 1 Treads . | . . . . . . . . . . Legs 3113 | . 398 266 415 581 180 73 554 189 457 Wheels . | . . . . . . . . . . Hover . | . . . . . . . . . . Flight . | . . . . . . . . . . Fastest Speed 50 | 50 50 120 120 180 155 160 150 150 160 Average Speed 160 | 50 118 120 165 212 161 179 155 157 170 Slowest Speed 1100 | 50 120 120 180 750 180 185 240 160 1100 Overloaded Moves . | . . . . . . . . . . Propulsion Burnouts . | . . . . . . . . . . Robots Hopped . | . . . . . . . . . . Cave-ins Triggered . | . . . . . . . . . . Exploration Rate (%) 43 | 4 76 63 86 97 25 3 57 6 18 Regions Visited 9 Branch Regions 3 Pre-discovered Areas 2 | . . 1 1 . . . . . . Known Exits Taken 3 | . . . . . 1 1 . 1 . Unknown Exits Taken 5 | 1 1 1 1 1 . . . . . Scrap Searched 3 | . . 1 . 2 . . . . . Spaces Dug 24 | . 7 . . . . . . 12 5 Terrain Destroyed 356 | . 93 42 . 4 27 . 10 89 91 Melee . | . . . . . . . . . . Projectile 4 | . . . . . . . 4 . . AOE 352 | . 93 42 . 4 27 . 6 89 91 Terrain Rammed . | . . . . . . . . . . Walls Destroyed . | . . . . . . . . . . Machines Disabled . | . . . . . . . . . . Actions | -11 -10 -10 -10 -9 -8 -7 -7 -7 -6 --------- Run | Scr Mat Min Exi Min Mat Fac Gar Fac Fac Total 4018 | 134 504 275 420 639 231 75 802 307 631 Wait 344 | 3 55 . 3 15 5 . 113 61 89 Move 3243 | 97 404 265 414 615 179 72 551 188 458 Hop . | . . . . . . . . . . Pick Up 51 | 4 3 2 1 6 9 . 11 11 4 Fast Attach 25 | 5 4 1 1 . . . 3 2 9 Attach 28 | . 1 . . . 6 2 10 . 9 Detach . | . . . . . . . . . . Swap 33 | . 2 1 . 1 6 1 7 11 4 Drop 38 | . 4 4 1 1 6 . 3 16 3 Fire 217 | 25 31 2 . 1 20 . 79 16 43 Melee 9 | . . . . . . . . 2 7 Ram . | . . . . . . . . . . Kick . | . . . . . . . . . . Crush . | . . . . . . . . . . Escape Stasis 30 | . . . . . . . 25 . 5 Rewire . | . . . . . . . . . . Trap . | . . . . . . . . . . Miscellaneous . | . . . . . . . . . . Route ------- -11/Scrapyard -10/Materials (discovered 3 exits: [*Mat] / *Min x2) -10/Mines (discovered 2 exits: [*Mat] / *Exi) -10/Exiles (discovered 2 exits: *Min x2) -9/Mines (discovered 2 exits: *Mat x2) -8/Materials -7/Factory -7/Garrison (discovered 2 exits: *Fac x2) -7/Factory -6/Factory History --------- Turn | Location | Event 10 | -11/Scrapyard | Discovered new exit (range 14) 114 | -11/Scrapyard | Entered Materials 264 | -10/Materials | Discovered new exit (range 3) 290 | -10/Materials | Repaired Imp. Terrain Scanner 311 | -10/Materials | Build established: Mutant 318 | -10/Materials | Repaired Aluminum Leg 327 | -10/Materials | Discovered new exit (range 15) 405 | -10/Materials | Discovered new exit (range 16) 727 | -10/Materials | Entered Mines 739 | -10/Mines | Learned location of Zion (-7) 778 | -10/Mines | Discovered new exit (range 8) 787 | -10/Mines | Learned Materials terminal intel 792 | -10/Mines | Learned Materials emergency access door positions 806 | -10/Mines | Met a Derelict who couldn't figure out how to use a Trap Extractor 952 | -10/Mines | Assisted by bots powering up and referring to "LRC-V3" 1045 | -10/Mines | Deemed a non-threat by the Exiles lab entrance 1046 | -10/Mines | Discovered new exit (range 5) 1056 | -10/Mines | Entered Exiles 1056 | -10/Exiles | Accompanied by 3 allies 1078 | -10/Exiles | Discovered new exit (range 15) 1110 | -10/Exiles | Met 8R-AWN 1131 | -10/Exiles | Met EX-HEX 1209 | -10/Exiles | Met EX-DEC 1245 | -10/Exiles | Visited The Gauntlet 1559 | -10/Exiles | Met EX-BIN 1721 | -10/Exiles | Discovered new exit (range 14) 1749 | -10/Exiles | Entered Mines 1749 | -9/Mines | Accompanied by 3 allies 1818 | -9/Mines | Joined a pair of Derelicts in attacking an 0b10 outpost 2368 | -9/Mines | Discovered new exit (range 15) 2452 | -9/Mines | Discovered new exit (range 10) 2584 | -9/Mines | Learned location of 1 exit from Materials 3081 | -9/Mines | Entered Materials 3081 | -8/Materials | Accompanied by 5 allies 3081 | -8/Materials | Evolved 4 slots: Utility x4 3082 | -8/Materials | Identified exit to Factory 3084 | -8/Materials | Loaded intel: 12 terminal locations 3086 | -8/Materials | Led the pair of lost Derelicts to an unsafe place 3453 | -8/Materials | Entered Factory 3453 | -7/Factory | Accompanied by 1 ally 3453 | -7/Factory | Evolved 2 slots: Utility x2 3585 | -7/Factory | Identified exit to Garrison 3586 | -7/Factory | Entered Garrison 3586 | -7/Garrison | Accompanied by 1 ally 3666 | -7/Garrison | Triggered checkpoint 3695 | -7/Garrison | Garrison Relay disabled 3855 | -7/Garrison | Triggered checkpoint 3858 | -7/Garrison | Triggered checkpoint 3948 | -7/Garrison | Lost 7 parts (1p4u2w) 4031 | -7/Garrison | Lost 4 parts (1p1n2w) 4305 | -7/Garrison | Discovered new exit (range 8) 4324 | -7/Garrison | Triggered checkpoint 4352 | -7/Garrison | Garrison Relay disabled 4365 | -7/Garrison | Build established: Scavenger-Mutant 4401 | -7/Garrison | Installed Relay Interface Framework 4566 | -7/Garrison | Triggered checkpoint 4602 | -7/Garrison | Garrison Relay disabled 4651 | -7/Garrison | Discovered new exit (range 10) 4804 | -7/Garrison | Entered Factory 5051 | -7/Factory | Discovered new exit (range 5) 5063 | -7/Factory | Identified exit to Factory 5096 | -7/Factory | Core integrity fell below 50% 5190 | -7/Factory | Build established: Mutant 5204 | -7/Factory | First assault squad dispatched 5219 | -7/Factory | Repaired Imp. Cooling System 5243 | -7/Factory | Entered another Factory area 5243 | -6/Factory | Evolved 2 slots: Power x1, Weapon x1 5497 | -6/Factory | Garrison activated, responded to threat 5605 | -6/Factory | Garrison activated, responded to threat 5707 | -6/Factory | Spotted B-75 Beast 5858 | -6/Factory | Lost 4 parts (2p2w) 5942 | -6/Factory | Build established: Bothacker-Mutant 5954 | -6/Factory | Lost 5 parts (1p1n2u1w) 6182 | -6/Factory | Repaired F-cell Engine? 6225 | -6/Factory | Core integrity fell below 50% 6245 | -6/Factory | Core integrity fell below 20% 6273 | -6/Factory | Destroyed by Y-54 Guardian with Gatling Laser Last Messages --------------- 06234_ Hvy. Particle Cannon destroyed. 06235_ Overheating: Energy bleed (-80). 06236_ Angular Momentum Engine destroyed. 06236_ Backup Propulsion I destroyed. 06236_ K-01 Serf collects debris. 06238_ Relay Coupler [NC] destroyed. 06239_ K-01 Serf collects debris. 06241_ Y-54 Guardian emerges from the garrison. 06241_ Penetrated by Slug. 06242_ Angular Momentum Engine destroyed. 06244_ K-01 Serf collects debris. 06244_ Penetrated by Slug. 06244_ Triangulator destroyed. 06244_ Slug penetrates Wall. 06246_ Relay Coupler [Grunt] destroyed. 06248_ Penetrated by Slug. 06248_ K-01 Serf collects debris. 06261_ Slug penetrates Wall. 06271_ Penetrated by Slug. 06272_ Angular Momentum Engine destroyed. Map ----- +----------------------------------------------------+ | ????????????# " #??? | | ????????????# # #??? | | ????????????# # # "###+####?? | | ????????????### #"""##### #?? | | ??????????????# #####???# """ #?? | | ??????????????# #???????# """ #?? | | ??????????????# #???????# """ #?? | | ??????????????# #???????# #?? | | ??????????????# #???????# #?? | | ??????????????# #???????########?? | | ??????????????# #????########????? | | ????????????### ###??# #????? | | ???#+######## #??# #????? | | ??# #### """#????? | | ??# + ! R"#????? | | #### """#????? | | ?###### ##### #??# #????? | | ??????#?????###+###??####+###????? | | ????????????????????????# #??????? | | ????????????????????????# #??????? | | ????????????????????????# #??????? | | ????????????????????????# #??????? | | ????????????????????????# #??????? | | ????????????????????????# #??????? | | ????????????????????????# #??????? | | ??????#?????????????????#@#??????? | | ??????# ################# ####???? | | ??????# h #???? | | ??????# * YY #???? | | ??????# ! #???? | | ??????#^^ [ = #???? | | ??????# ! ##### #???? | | ??????# " #???? #???? | | ??????+ """ ""%% "" #???? #???? | | ??????# """ ""%% G #??#???? | | ??????# """ """ "" #??????? | | ??????# " #??????? | | ??????# !! ??????? | | ?????? ! #?????? | | ?????##?###### #?????? | | ?????????????# #?????? | | ??????????????########## #?????? | | ???????????????????????? ??????? | | ?????????????????????????????????? | | ?????????????????????????????????? | | ?????????????????????????????????? | | ?????????????????????????????????? | | ?????????????????????????????????? | | ?????????????????????????????????? | | ?????????????????????????????????? | +----------------------------------------------------+ Best States ------------- Heat Dissipation 64 Energy Generation 31 Energy Capacity 500 Matter Stores 300 Matter Capacity 300 Sight Range 16 Robot Scan Range 16 Terrain Scan Range 16 Terrain Scan Density 85 Corruption Prevention 12 Armor Coverage 300 Core Shielding 20 Evasion (%) 50 Targeting Accuracy 8 Target Analysis 6 Relay Coupler Types 58 Relay Coupler Value 2 Item Schematics ----------------- None Robot Schematics ------------------ None Fabricated ------------ Nothing Alien Tech Used ----------------- None Achievements -------------- None Challenges ------------ None Game ------ Seed ImprinterShadingExpander Manual? 0 Play Time 01:12:28 Cumulative 196.8 hours Start 2020.09.18 @ 14:01:52 End 2020.09.18 @ 15:16:07 Sessions 1 Manual Loads 0 Difficulty Rogue Special Mode None Game No. 139 Rogue 139 Adventurer 0 Explorer 0 Win Type - Total 1 Types 1/0/0/0/0/0/0/0/0 Lore% 50 Gallery% 66 Achievement% 48 Wizard Run 0 Options --------- ASCII 0 Keyboard 0 Movement Mouse Keybinds 0 Fullscreen 1 Font 18/SmallcapsGlow Map View 76x50 Tactical HUD 1 Map Filters NONE Filters NONE Steam 1 RUN: 0be74324-69a7-4a3d-a16d-1918eccb07ce